bitfinex-derivatives/quotes_ETHF0:USTF0_20250804
["timestamp","ask_amount","ask_price","bid_price","bid_amount"]
[1754345681484,2.73436,3729.3,3729.2,0.53626]
[1754345681688,2.73437,3729.2,3729.1,0.53627]
[1754345681882,2.1981,3729.2,3729.1,0.53627]
[1754345682085,4.2435,3729.6,3729.5,1.55423]
[1754345682488,5.2559,3729.6,3729.5,0.53623]
[1754345682787,5.2559,3729.6,3729.5,2.31353]
[1754345682989,5.2559,3729.6,3729.5,2.75953]
[1754345683587,5.2559,3729.6,3729.5,2.31353]
[1754345683789,5.2559,3729.6,3729.5,0.29]
[1754345684092,2.1981,3729.4,3729.3,1.55425]
[1754345685185,2.1981,3729.4,3729.3,1.11535]
[1754345685589,2.1981,3729.4,3729.3,1.55425]
[1754345686189,2.1981,3729.4,3729.3,2.31355]
[1754345686385,2.1981,3729.4,3729.3,2.75955]
[1754345688587,0.53628,3729.2,3729.1,0.53628]
[1754345688792,2.1981,3729.0,3728.9,1.1154]
[1754345689293,2.1981,3729.0,3728.9,2.7596]
[1754345689792,2.01806,3729.3,3729.2,0.53627]
[1754345690092,2.73436,3729.3,3729.2,1.11537]
[1754345690589,2.73436,3729.3,3729.1,0.53627]
[1754345690790,0.8852,3729.2,3728.2,4.54884]
[1754345691095,2.1981,3728.4,3728.3,2.2233]
[1754345691693,2.1981,3728.4,3728.3,2.7597]
[1754345692991,0.307,3728.7,3728.6,1.85766]
[1754345693192,1.0357,3728.7,3728.6,2.75966]
[1754345693495,3.2078,3728.9,3728.8,2.75963]
[1754345693990,19.1991,3729.3,3728.8,2.75963]
[1754345694188,20.6809,3729.3,3729.2,2.75957]
[1754345694789,0.53627,3729.2,3729.1,0.53628]
[1754345694988,1.9131,3729.0,3728.9,0.5363]
[1754345695190,21.51036,3729.3,3729.2,0.53627]
[1754345695495,21.51036,3729.3,3729.2,1.11537]
[1754345695690,21.51036,3729.3,3729.2,1.474]
[1754345696089,0.5363,3729.0,3728.9,0.8263]
[1754345696289,1.4215,3729.0,3728.8,0.53632]
[1754345696490,2.1981,3728.9,3728.8,0.53632]
[1754345696795,0.8852,3728.5,3728.4,1.57149]
[1754345696998,2.1981,3728.5,3728.4,2.31369]
[1754345697192,0.53632,3728.9,3728.8,0.53632]
[1754345697496,1.42152,3728.9,3728.7,0.53634]
[1754345697694,1.42152,3728.9,3728.8,0.5791]
[1754345697894,2.1981,3728.9,3728.8,1.474]
[1754345698097,2.1981,3728.9,3728.8,0.29]
[1754345698294,2.1981,3728.9,3728.8,2.2233]
[1754345698792,1.0357,3728.9,3728.8,2.2233]
[1754345698993,0.285,3728.9,3728.8,2.2233]
[1754345699192,19.364,3729.1,3729.0,2.2233]
[1754345699496,20.9701,3729.1,3729.0,2.2233]
[1754345699889,2.1981,3729.1,3729.0,2.2233]
[1754345700293,1.0233,3729.1,3729.0,2.2233]
[1754345700491,18.771,3729.2,3729.1,2.75959]
[1754345700893,19.363,3729.2,3729.1,2.75959]
[1754345701096,19.8067,3729.2,3729.1,2.75959]
[1754345701497,19.363,3729.2,3729.1,2.2233]
[1754345701698,20.963,3729.2,3729.1,0.5791]
[1754345701892,0.5363,3729.0,3728.8,0.8916]
[1754345702091,0.873,3728.7,3728.6,0.53635]
[1754345702297,2.205,3728.7,3728.6,1.11945]
[1754345702499,2.205,3728.7,3728.6,2.28785]
[1754345702696,18.769,3728.7,3728.3,3.74419]
[1754345702999,0.2991,3727.6,3727.5,2.3839623]
[1754345703297,21.9768,3728.0,3727.1,1.3367]
[1754345703499,2.205,3727.2,3727.1,2.73316]
[1754345704400,1.7712,3727.2,3727.1,2.73316]
[1754345704702,0.8982,3727.6,3727.5,0.4334]
[1754345704897,1.7525,3727.6,3727.4,0.9033]
[1754345705106,2.205,3727.5,3727.4,2.45632]
[1754345705298,2.205,3727.4,3727.3,0.8599]
[1754345705602,2.205,3727.4,3727.3,2.1966]
[1754345705902,0.97029,3727.7,3727.4,0.53653]
[1754345706103,2.74149,3727.7,3727.6,1.7515]
[1754345707697,2.74152,3727.5,3727.4,0.5831]
[1754345707897,2.74152,3727.5,3727.1,0.53656]
[1754345708098,2.205,3727.4,3727.3,0.5831]
[1754345708404,2.205,3727.4,3727.3,1.7515]
[1754345709504,2.205,3727.4,3727.3,0.5831]
[1754345709699,0.53654,3727.3,3727.0,4.17778]
[1754345710001,2.205,3727.1,3727.0,2.28808]
[1754345710804,18.768,3727.4,3727.3,2.73314]
[1754345711602,19.3715,3727.4,3727.3,2.73314]
[1754345711801,19.0671,3727.4,3727.3,2.73314]
[1754345712001,18.768,3727.4,3727.3,2.73314]
[1754345712408,19.3715,3727.4,3727.3,2.73314]
[1754345712607,0.2991,3727.0,3726.9,1.011]
[1754345712807,2.205,3727.0,3726.9,1.84159]
[1754345713309,2.205,3727.0,3726.9,2.73319]
[1754345713706,2.205,3727.0,3726.9,1.2933]
[1754345714207,2.205,3727.0,3726.9,0.5831]
[1754345714408,0.53658,3727.1,3727.0,0.8916]
[1754345714608,1.59258,3727.1,3727.0,2.1966]
[1754345715518,1.056,3727.1,3727.0,2.1966]
[1754345716216,4.0487,3727.6,3727.5,2.1966]
[1754345716409,22.8147,3727.6,3727.5,2.1966]
[1754345716609,2.43713,3727.4,3727.3,1.9198]
[1754345716814,2.74153,3727.4,3727.3,2.1966]
[1754345717413,2.74153,3727.4,3727.3,1.0165]
[1754345717719,1.14002,3727.5,3727.4,2.1966]
[1754345717913,1.59252,3727.5,3727.4,2.1966]
[1754345718418,2.44682,3727.5,3727.4,2.1966]
[1754345719714,1.9103,3727.5,3727.4,2.1966]
[1754345719919,20.6753,3727.5,3727.4,2.1966]
[1754345720116,20.97,3727.5,3727.4,2.1966]
[1754345720722,20.969,3727.5,3727.4,2.1966]
[1754345720910,19.3675,3727.5,3727.4,2.1966]
[1754345721118,18.764,3727.5,3727.4,2.1966]
[1754345721810,3.5122,3728.0,3727.9,0.5831]
[1754345722018,3.2078,3728.4,3727.9,1.3367]
[1754345722218,20.968,3728.3,3728.2,1.7515]
[1754345722515,3.2078,3728.4,3728.3,1.3367]
[1754345722816,22.5743,3728.4,3728.3,2.1966]
[1754345723016,3.2078,3729.0,3728.3,2.1966]
[1754345723216,1.332,3728.4,3728.3,0.5831]
[1754345723418,1.43459,3728.4,3728.2,0.53641]
[1754345723622,2.205,3728.3,3728.2,0.53641]
[1754345724425,2.205,3728.3,3728.2,1.11951]
[1754345724625,2.205,3728.3,3728.2,1.55291]
[1754345725126,19.2145,3728.5,3728.3,0.53639]
[1754345725425,1.4765,3728.4,3728.3,1.84139]
[1754345725824,1.4765,3728.4,3728.3,2.73299]
[1754345726426,1.9103,3728.4,3728.3,2.73299]
[1754345726627,2.205,3728.4,3728.3,2.73299]
[1754345727230,18.762,3728.5,3728.3,2.73299]
[1754345727430,21.9658,3728.6,3728.5,2.73297]
[1754345727628,18.758,3728.6,3728.5,2.73297]
[1754345728925,18.758,3728.6,3728.5,0.53637]
[1754345729120,20.963,3728.6,3728.5,1.55287]
[1754345729324,20.963,3728.6,3728.5,2.73297]
[1754345729525,19.814,3728.6,3728.5,2.73297]
[1754345729831,20.963,3728.6,3728.5,2.73297]
[1754345730129,20.963,3728.6,3728.5,2.28787]
[1754345731025,18.758,3728.6,3728.5,0.53637]
[1754345731228,2.205,3727.9,3727.8,3.74426]
[1754345731428,20.959,3727.9,3727.8,3.7909]
[1754345731724,20.959,3727.9,3727.3,1.34133]
[1754345731725,2.1659,3727.5,3727.4,1.86973]
[1754345731925,3.2078,3728.1,3727.3,3.2078]
[1754345731926,2.1659,3727.4,3727.3,3.2078]
[1754345732126,20.9189,3727.4,3727.3,3.2078]
[1754345732321,20.9189,3727.4,3727.2,0.53655]
[1754345732322,20.16134,3727.4,3727.2,0.53655]
[1754345732528,2.1659,3727.0,3726.9,2.71329]
[1754345732730,19.6248,3727.0,3726.6,1.3003]
[1754345732931,2.1659,3726.7,3726.6,2.29584]
[1754345733130,2.1659,3726.7,3726.6,2.71334]
[1754345733532,3.6277,3727.3,3726.6,1.3003]
[1754345733727,19.0322,3727.2,3727.1,1.7199]
[1754345733934,18.752,3727.2,3727.1,2.1767]
[1754345734432,1.0016,3727.7,3727.6,2.1767]
[1754345734630,20.9179,3727.7,3727.6,0.5778]
[1754345734933,1.7146,3727.3,3727.2,0.53656]
[1754345735134,20.9169,3727.3,3727.2,2.71326]
[1754345735328,0.5787,3727.0,3726.9,1.4194]
[1754345735533,20.6238,3727.0,3726.9,2.7133]
[1754345736129,20.9169,3727.0,3726.9,2.1767]
[1754345736329,20.9169,3727.0,3726.9,1.7592]
[1754345736525,2.1659,3726.8,3726.7,1.11442]
[1754345736734,1.4215,3726.8,3726.7,2.71332]
[1754345736926,1.0016,3726.8,3726.7,2.71332]
[1754345737831,18.751,3727.0,3726.9,0.5366]
[1754345738031,19.7526,3727.0,3726.9,2.7133]
[1754345738533,20.9169,3727.0,3726.9,1.9972]
[1754345738933,21.45349,3727.0,3726.4,4.0906]
[1754345739232,2.1659,3726.5,3726.4,5.92117]
[1754345740126,1.0016,3726.5,3726.4,5.92117]
[1754345740331,0.9986,3726.8,3726.7,1.41303]
[1754345740526,1.8728,3726.8,3726.7,2.71333]
[1754345740725,2.1659,3726.8,3726.7,2.71333]
[1754345741127,18.751,3727.0,3726.9,0.5366]
[1754345741332,18.751,3727.0,3726.9,2.7133]
[1754345741530,19.3297,3727.0,3726.9,2.7133]
[1754345741837,20.9169,3727.0,3726.9,2.7133]
[1754345742231,19.7526,3727.0,3726.9,2.7133]
[1754345742536,0.5787,3727.4,3727.3,1.41294]
[1754345742734,19.7516,3727.4,3727.3,1.41294]
[1754345743038,20.9159,3727.4,3727.3,1.41294]
[1754345743338,20.9159,3727.4,3727.3,2.71324]
[1754345743727,20.9159,3727.4,3727.3,1.99714]
[1754345744638,0.8718,3727.3,3727.1,0.53657]
[1754345744839,2.70247,3727.2,3727.1,0.53657]
[1754345745235,2.1659,3727.2,3727.1,0.53657]
[1754345746138,2.1659,3727.2,3727.1,1.11437]
[1754345746334,2.1659,3727.2,3727.1,2.71327]
[1754345746740,18.75,3727.4,3727.3,2.71324]
[1754345747038,19.3277,3727.4,3727.3,1.41294]
[1754345747239,20.9149,3727.4,3727.3,1.41294]
[1754345747638,20.9149,3727.4,3727.3,2.71324]
[1754345748036,20.9149,3727.4,3727.3,0.83814]
[1754345748739,20.9149,3727.4,3727.3,2.29574]
[1754345750041,20.9149,3727.4,3727.3,1.7592]
[1754345750242,20.9149,3727.4,3727.3,1.3332]
[1754345751142,20.9149,3727.4,3727.3,1.0346]
[1754345751344,20.9149,3727.4,3727.3,2.1767]
[1754345752942,19.3277,3727.4,3727.3,2.1767]
[1754345753138,3.2078,3727.5,3727.4,0.53653]
[1754345753346,21.9528,3727.5,3727.4,2.71323]
[1754345753739,21.9518,3727.5,3727.4,2.71323]
[1754345755046,0.8718,3727.9,3727.8,1.41287]
[1754345755346,20.9099,3727.9,3727.8,2.71317]
[1754345756542,20.9099,3727.9,3727.8,0.8764]
[1754345756742,1.4083,3727.7,3727.6,0.53649]
[1754345756937,20.9089,3727.7,3727.6,0.53649]
[1754345757144,19.6148,3727.7,3727.6,2.71319]
[1754345757339,0.8718,3728.2,3728.1,0.53642]
[1754345757644,0.8712,3728.6,3728.3,0.5778]
[1754345757946,2.84655262,3728.6,3728.5,2.71307]
[1754345758143,20.9059,3728.6,3728.5,2.71307]
[1754345758644,20.9059,3728.6,3727.9,0.8743]
[1754345758645,0.2802,3728.0,3727.9,0.8743]
[1754345758854,2.1659,3728.0,3727.9,2.71316]
[1754345759346,1.2947,3728.0,3727.9,2.71316]
[1754345759547,18.74,3728.2,3728.1,1.41283]
[1754345759746,20.486,3728.2,3728.1,2.71313]
[1754345759949,20.9059,3728.2,3728.1,2.71313]
[1754345760152,18.74,3728.2,3728.1,2.71313]
[1754345760340,20.9059,3728.2,3728.1,2.71313]
[1754345760644,20.9059,3728.2,3728.1,2.29563]
[1754345760844,20.9059,3728.2,3728.1,0.53643]
[1754345761550,2.1431,3728.1,3728.0,0.53644]
[1754345762042,2.1431,3728.1,3728.0,1.10804]
[1754345762246,2.1478,3728.1,3728.0,2.21934]
[1754345762451,2.1478,3728.1,3728.0,0.53644]
[1754345762750,2.1478,3728.1,3728.0,1.10804]
[1754345763644,18.74,3728.2,3728.0,1.10804]
[1754345763845,0.9941,3728.1,3728.0,2.21934]
[1754345764045,0.9941,3728.1,3728.0,2.66174]
[1754345764447,1.2906,3728.1,3728.0,2.66174]
[1754345764752,2.1478,3728.1,3728.0,2.66174]
[1754345765450,18.74,3728.2,3728.0,2.66174]
[1754345765651,18.74,3728.2,3728.1,1.2862]
[1754345765853,18.74,3728.2,3728.1,2.1253]
[1754345766150,18.74,3728.2,3728.1,1.6829]
[1754345766351,18.733,3728.5,3728.4,0.8391]
[1754345766651,20.8808,3728.5,3728.4,2.1253]
[1754345768351,20.4497,3728.5,3728.4,2.1253]
[1754345768741,20.8808,3728.5,3728.4,2.1253]
[1754345768949,19.5994,3728.5,3728.4,2.1253]
[1754345769446,2.1478,3728.4,3728.3,0.5364]
[1754345769853,2.1478,3728.4,3728.3,0.8193]
[1754345770050,2.1478,3728.4,3728.3,1.108]
[1754345770246,1.2906,3728.4,3728.3,1.3755]
[1754345770451,2.1478,3728.4,3728.3,1.3755]
[1754345770753,2.1478,3728.4,3728.3,0.5364]
[1754345772851,2.26001,3728.3,3728.2,0.5364]
[1754345773054,21.41221,3728.3,3728.2,0.5364]
[1754345773449,20.8758,3728.3,3728.2,0.5364]
[1754345773649,1.8594,3728.2,3728.1,0.53642]
[1754345773943,1.2975,3727.9,3727.8,0.5716]
[1754345774155,20.8748,3727.9,3727.8,0.2829]
[1754345774549,20.8748,3727.9,3727.8,0.5716]
[1754345775057,20.8748,3727.9,3727.8,1.53287]
[1754345775246,20.8748,3727.9,3727.8,1.95187]
[1754345776752,38.71,3727.9,3726.2,2.3839623]
[1754345776952,3.2078,3726.8,3725.7,0.96157]
[1754345777146,0.53674,3726.0,3725.4,1.2639]
[1754345777346,0.53676,3725.8,3725.7,0.5716]
[1754345777549,19.26576,3725.8,3725.7,1.7063]
[1754345777855,0.53681,3725.5,3724.6,1.82312]
[1754345778055,0.53683,3725.3,3725.2,2.1253]
[1754345778358,18.727,3725.4,3724.8,0.8614]
[1754345778556,3.2078,3725.5,3724.5,3.2078]
[1754345778753,18.729,3725.4,3725.3,2.1253]
[1754345779649,0.53675,3725.9,3725.4,2.1253]
[1754345779854,0.1489687,3726.0,3725.7,1.2862]
[1754345780059,18.728,3725.9,3725.8,1.2862]
[1754345780659,18.728,3725.9,3725.5,3.2078]
[1754345780856,18.728,3725.9,3725.3,0.4248]
[1754345781056,0.53676,3725.8,3725.4,0.419]
[1754345781357,3.2078,3726.0,3725.4,3.74461]
[1754345781558,0.53678,3725.7,3725.6,0.4248]
[1754345781752,19.26774,3725.9,3725.7,0.4248]
[1754345781958,0.53683,3725.3,3725.2,3.2078]
[1754345782160,22.47563,3725.3,3725.2,0.8672]
[1754345782458,22.47563,3725.3,3725.2,0.4248]
[1754345782661,21.9388,3725.3,3724.4,3.2078]
[1754345783059,3.7447,3724.9,3724.4,0.53696]
[1754345783258,0.53698,3724.3,3723.9,4.17451545]
[1754345783458,18.733,3724.2,3723.9,0.96671545]
[1754345783656,3.2078,3724.4,3723.9,0.96671545]
[1754345783853,3.2078,3724.9,3724.3,1.2862]
[1754345784055,0.53695,3724.5,3724.2,0.4248]
[1754345784359,0.53695,3724.5,3724.1,3.2078]
[1754345784360,3.2078,3724.9,3724.4,0.53696]
[1754345784561,18.751,3724.8,3724.4,1.2862]
[1754345784761,18.751,3724.7,3724.3,3.2078]
[1754345784963,0.53693,3724.6,3724.5,0.4248]
[1754345785259,19.28792,3724.7,3724.5,0.4248]
[1754345785467,19.28792,3724.7,3724.6,0.4248]
[1754345785666,18.757,3724.7,3724.3,3.2078]
[1754345785855,18.757,3724.7,3724.5,0.53694]
[1754345786061,18.757,3724.7,3724.6,0.4424]
[1754345786365,18.757,3724.7,3724.6,0.8672]
[1754345786559,3.2078,3724.9,3724.7,0.53692]
[1754345786757,38.635,3725.0,3724.8,0.4248]
[1754345786962,38.635,3725.0,3724.9,0.4248]
[1754345787361,38.635,3725.0,3724.9,1.2862]
[1754345787561,57.386,3725.0,3724.9,1.2862]
[1754345787761,38.635,3725.0,3724.9,1.2862]
[1754345788066,57.385,3725.0,3724.9,1.2862]
[1754345788260,38.635,3725.0,3724.9,1.2862]
[1754345788663,57.382,3725.0,3724.9,1.2862]
[1754345789168,57.382,3725.0,3724.9,1.82309]
[1754345789358,38.635,3725.0,3724.9,1.2862]
[1754345789567,57.379,3725.0,3724.9,1.2862]
[1754345789761,57.379,3725.0,3724.8,0.4248]
[1754345789965,0.53689,3724.9,3724.7,0.4424]
[1754345790473,18.744,3724.8,3724.7,0.8672]
[1754345790768,18.744,3724.8,3724.7,0.4248]
[1754345791166,38.635,3725.0,3724.7,0.4424]
[1754345791370,18.741,3724.9,3724.8,1.2862]
[1754345791761,0.542,3724.8,3724.7,0.4296]
[1754345791972,0.0051,3724.8,3724.7,0.4296]
[1754345792173,39.17188,3725.0,3724.9,1.3045]
[1754345792368,57.91498,3725.0,3724.9,1.3045]
[1754345792567,57.91498,3725.0,3724.9,0.8731]
[1754345793072,57.91498,3725.0,3724.9,0.4296]
[1754345793274,0.53693,3724.7,3724.6,0.4296]
[1754345793469,18.739,3724.7,3724.6,0.4296]
[1754345793774,18.7441,3724.7,3724.6,0.8731]
[1754345794871,3.2078,3724.8,3724.7,0.53692]
[1754345795074,21.9468,3724.8,3724.7,1.84142]
[1754345795469,3.2078,3724.8,3724.7,1.84142]
[1754345795670,18.739,3724.8,3724.7,1.84142]
[1754345796273,38.635,3725.0,3724.9,0.53689]
[1754345796473,57.375,3725.0,3724.9,1.84139]
[1754345797177,57.375,3725.0,3724.9,1.3045]
[1754345797876,38.635,3725.0,3724.9,1.3045]
[1754345798078,57.375,3725.0,3724.9,1.3045]
[1754345798681,57.375,3725.0,3724.9,2.1858]
[1754345800883,57.3801,3725.0,3724.9,2.1858]
[1754345801081,57.3801,3725.0,3724.9,1.015]
[1754345801379,57.3801,3725.0,3724.9,2.1858]
[1754345801673,57.375,3725.0,3724.9,2.1858]
[1754345804483,57.374,3725.0,3724.9,2.1858]
[1754345804883,38.635,3725.0,3724.9,2.1858]
[1754345805178,57.374,3725.0,3724.9,2.1858]
[1754345805382,57.3791,3725.0,3724.9,2.1858]
[1754345805781,57.374,3725.0,3724.9,2.1858]
[1754345806177,38.635,3725.0,3724.9,2.1858]
[1754345806381,0.53676,3725.8,3725.7,1.41806]
[1754345806580,19.48235021,3725.8,3725.7,2.72256]
[1754345806781,19.47415021,3725.8,3725.7,2.72256]
[1754345806984,19.48745021,3725.8,3725.7,2.1858]
[1754345807184,0.53679,3725.6,3725.5,0.53679]
[1754345807384,0.53679,3725.6,3725.5,0.96639]
[1754345807385,19.48748021,3725.6,3725.5,0.96639]
[1754345807587,18.95069021,3725.6,3725.5,0.96639]
[1754345807785,18.95069021,3725.6,3725.5,2.72259]
[1754345808185,18.94559021,3725.6,3725.5,2.72259]
[1754345808486,19.64533641,3725.6,3725.5,2.72259]
[1754345808982,0.90123641,3725.6,3725.5,2.72259]
[1754345809287,19.63923641,3725.6,3725.5,2.72259]
[1754345809682,19.62193641,3725.6,3725.5,2.72259]
[1754345809982,0.88393641,3725.6,3725.5,2.72259]
[1754345810184,19.62193641,3725.6,3725.5,2.72259]
[1754345811090,18.92729021,3725.6,3725.5,2.72259]
[1754345813587,18.77729021,3725.6,3725.5,2.72259]
[1754345814087,18.738,3725.6,3725.5,2.72259]
[1754345814986,18.735,3725.6,3725.5,1.41809]
[1754345815290,18.735,3725.6,3725.5,1.86159]
[1754345815791,18.735,3725.6,3725.5,2.72259]
[1754345816288,18.735,3725.6,3725.5,0.53679]
[1754345816486,18.735,3725.6,3725.3,3.2078]
[1754345816487,0.5368,3725.5,3725.4,0.4296]
[1754345817088,0.5368,3725.5,3725.4,0.8731]
[1754345817293,19.2718,3725.6,3725.5,0.9664]
[1754345817489,19.2718,3725.6,3725.5,0.4296]
[1754345817792,3.2078,3725.9,3725.8,0.8813]
[1754345818092,22.63674664,3725.9,3725.8,2.72256]
[1754345818288,3.90274664,3725.9,3725.8,2.72256]
[1754345818489,38.652,3726.2,3726.1,2.72251]
[1754345818685,39.34679075,3726.2,3726.1,2.72251]
[1754345818995,57.386,3726.2,3726.1,2.72251]
[1754345819186,38.652,3726.2,3726.1,2.72251]
[1754345819393,57.385,3726.2,3726.1,2.72251]
[1754345819790,3.2078,3726.5,3726.4,2.72247]
[1754345819994,22.63436505,3726.5,3726.4,2.72247]
[1754345820392,3.90236505,3726.5,3726.4,2.72247]
[1754345820593,21.9398,3726.5,3726.4,2.1858]
[1754345820896,3.2078,3726.5,3726.4,2.1858]
[1754345821191,21.9398,3726.5,3726.4,2.1858]
[1754345821993,3.2078,3726.5,3726.4,2.1858]
[1754345822193,0.53665,3726.6,3726.5,1.35766]
[1754345822394,19.26865,3726.6,3726.5,2.60526]
[1754345822791,19.26865,3726.6,3726.5,2.0686]
[1754345823393,19.26665,3726.6,3726.5,2.0686]
[1754345823693,18.73,3726.6,3726.5,2.0686]
[1754345824692,0.53662,3726.8,3726.6,0.53664]
[1754345824893,0.53662,3726.8,3726.7,2.0686]
[1754345825094,19.26662,3726.8,3726.7,2.0686]
[1754345826100,19.26662,3726.8,3726.7,1.6472]
[1754345826402,19.26662,3726.8,3726.7,0.4189]
[1754345828004,0.53666,3726.5,3726.4,0.4189]
[1754345828199,0.5367,3726.2,3726.1,0.4189]
[1754345828400,19.2647,3726.2,3726.1,0.4189]
[1754345828602,18.728,3726.2,3726.1,2.0686]
[1754345833711,0.53668,3726.4,3726.2,1.6472]
[1754345833911,0.53668,3726.4,3726.3,2.0686]
[1754345834110,19.26168,3726.4,3726.3,2.0686]
[1754345834308,3.2078,3726.5,3726.4,1.08707]
[1754345834613,3.2078,3726.5,3726.4,2.60527]
[1754345835008,21.9318,3726.5,3726.4,2.60527]
[1754345835209,3.7444,3726.9,3726.8,2.0686]
[1754345835513,22.4684,3726.9,3726.8,2.0686]
[1754345837715,0.5366,3726.9,3726.8,2.0686]
[1754345837917,19.2596,3726.9,3726.8,2.0686]
[1754345838413,0.5366,3726.9,3726.8,2.0686]
[1754345838608,19.2586,3726.9,3726.8,2.0686]
[1754345838811,38.646,3727.3,3727.2,2.0686]
[1754345839005,38.81568074,3727.3,3727.2,5.2764]
[1754345839315,57.53768074,3727.3,3727.2,5.2764]
[1754345839912,0.53645,3728.0,3727.2,4.4554]
[1754345840115,0.53651,3727.5,3727.4,0.8262]
[1754345840419,18.721,3727.5,3727.4,2.0686]
[1754345840617,0.53644,3728.0,3727.9,0.821]
[1754345840915,19.42604246,3728.0,3727.9,2.0686]
[1754345841313,19.25644,3728.0,3727.9,2.0686]
[1754345842114,19.42596563,3728.0,3727.9,0.4189]
[1754345842316,19.25644,3728.0,3727.9,0.4189]
[1754345842820,19.4259225,3728.0,3727.9,0.4189]
[1754345843115,19.42592422,3728.0,3727.9,0.4189]
[1754345843318,19.25644,3728.0,3727.9,0.4189]
[1754345843712,19.25644,3728.0,3727.9,1.0976]
[1754345844018,19.25344,3728.0,3727.9,2.0686]
[1754345844819,0.53644,3728.0,3727.9,0.6903]
[1754345845118,19.25244,3728.0,3727.9,1.2399]
[1754345845715,19.25244,3728.0,3727.9,2.0686]
[1754345846714,19.25244,3728.0,3727.9,0.4189]
[1754345846914,0.53652,3727.5,3727.4,2.0686]
[1754345847219,22.45832,3727.5,3727.4,0.6903]
[1754345847412,22.45832,3727.5,3727.4,0.4189]
[1754345847613,22.45832,3727.5,3727.0,0.4214]
[1754345847614,0.53657,3727.1,3727.0,1.0976]
[1754345847916,19.25057,3727.1,3727.0,1.0976]
[1754345848116,19.25057,3727.1,3727.0,1.6472]
[1754345848309,19.25057,3727.1,3727.0,2.0686]
[1754345850921,22.45837,3727.1,3727.0,0.4189]
[1754345851217,0.53669,3726.3,3726.2,1.6472]
[1754345851412,3.74445,3726.6,3726.5,0.8562]
[1754345851612,22.45645,3726.6,3726.5,0.8562]
[1754345851815,22.45645,3726.6,3726.5,2.13]
[1754345852016,3.74445,3726.6,3726.5,2.13]
[1754345852216,22.45645,3726.6,3726.5,2.13]
[1754345852518,3.74445,3726.6,3726.5,2.13]
[1754345852815,22.45645,3726.6,3726.5,2.13]
[1754345853616,22.45645,3726.6,3726.1,0.4321]
[1754345853824,0.53672,3726.1,3726.0,1.6905]
[1754345854019,19.24872,3726.1,3726.0,2.13]
[1754345854722,18.712,3726.1,3726.0,2.13]
[1754345856818,0.53666,3726.5,3726.0,1.2738]
[1754345857019,3.2078,3726.6,3726.5,2.66666]
[1754345857223,21.9188,3726.6,3726.5,2.66666]
[1754345857723,18.711,3726.6,3726.5,2.66666]
[1754345859620,18.711,3726.6,3726.5,2.13]
[1754345860121,0.53662,3726.8,3726.7,0.84153]
[1754345860427,19.24762,3726.8,3726.7,2.66663]
[1754345860726,19.24762,3726.8,3726.7,2.13]
[1754345860918,18.711,3726.8,3726.7,2.13]
[1754345861318,0.5366,3726.9,3726.7,2.66662]
[1754345861516,18.71,3726.8,3726.7,1.39282]
[1754345861927,18.71,3726.8,3726.7,1.2957]
[1754345862115,0.5366,3726.9,3726.7,2.66662]
[1754345862323,38.631,3727.0,3726.2,1.34174]
[1754345862324,39.16759,3727.0,3726.9,0.8562]
[1754345862517,39.16759,3727.0,3726.9,2.13]
[1754345862518,57.87659,3727.0,3726.9,2.13]
[1754345863223,57.34,3727.0,3726.9,2.13]
[1754345864523,38.631,3727.0,3726.9,2.13]
[1754345864729,57.34,3727.0,3726.9,2.13]
[1754345864929,38.631,3727.0,3726.9,2.13]
[1754345865132,57.339,3727.0,3726.9,2.13]
[1754345866222,38.631,3727.0,3726.9,2.13]
[1754345866424,57.339,3727.0,3726.9,2.13]
[1754345866623,38.631,3727.0,3726.9,2.13]
[1754345866827,3.2078,3727.5,3727.4,2.66653]
[1754345867029,18.707,3727.5,3727.4,2.66653]
[1754345867225,3.2078,3728.0,3727.7,0.82357]
[1754345867431,3.74424,3728.0,3727.9,1.6905]
[1754345867634,23.31469617,3728.0,3727.9,0.7192]
[1754345867933,23.31468058,3728.0,3727.9,0.7192]
[1754345868135,23.31468058,3728.0,3727.9,1.1214]
[1754345868335,23.31466301,3728.0,3727.9,1.1214]
[1754345868532,23.31466301,3728.0,3727.9,0.4321]
[1754345869730,23.31466301,3728.0,3727.9,0.8343]
[1754345870029,23.31466301,3728.0,3727.9,0.4321]
[1754345871533,23.31466301,3728.0,3727.9,2.13]
[1754345871735,4.60766301,3728.0,3727.9,2.13]
[1754345871938,23.31066301,3728.0,3727.9,2.13]
[1754345873241,4.07122301,3728.0,3727.9,2.13]
[1754345873438,22.77322301,3728.0,3727.9,2.13]
[1754345873739,22.07968741,3728.0,3727.9,2.13]
[1754345874335,22.07868741,3728.0,3727.9,2.13]
[1754345875740,21.9088,3728.0,3727.9,2.13]
[1754345875941,22.07871282,3728.0,3727.9,2.13]
[1754345876340,22.07871215,3728.0,3727.9,2.13]
[1754345877037,3.37771215,3728.0,3727.9,2.13]
[1754345877237,22.07671215,3728.0,3727.9,2.13]
[1754345878137,3.37771215,3728.0,3727.9,2.13]
[1754345878338,21.9058,3728.0,3727.9,2.13]
[1754345879937,18.698,3728.0,3727.9,2.13]
[1754345882646,38.636,3728.1,3728.0,1.38804]